bitfinex/quotes_ETHUSD_20250611
["timestamp","ask_amount","ask_price","bid_price","bid_amount"]
[1749670328323,10.1776,2814.7,2814.2,0.1776]
[1749670328324,3.779,2814.6,2814.2,0.1776]
[1749670328653,3.9566,2814.7,2814.2,0.1776]
[1749670329300,3.779,2814.7,2813.9,1.032]
[1749670329503,3.779,2814.7,2814.4,0.1776]
[1749670329950,0.1776,2814.9,2814.4,0.1776]
[1749670330105,3.779,2814.8,2813.9,1.032]
[1749670330442,3.779,2814.8,2814.7,0.1776]
[1749670331248,3.779,2814.8,2813.9,1.032]
[1749670331434,3.779,2814.8,2814.5,0.1776]
[1749670331615,0.1776,2815.0,2814.5,0.1776]
[1749670331616,10.1776,2815.0,2814.5,0.1776]
[1749670331939,10.1776,2815.0,2814.7,0.1776]
[1749670331940,3.779,2815.0,2814.7,0.1776]
[1749670332845,0.1776,2815.3,2814.3,3.55319751]
[1749670333046,0.7535,2815.7,2814.0,4.0121953]
[1749670333047,3.779,2815.6,2815.2,0.1776]
[1749670333548,9.97787038,2815.4,2815.2,0.1776]
[1749670336361,0.1776,2815.3,2814.8,0.1776]
[1749670336522,9.97787038,2815.1,2814.8,0.1776]
[1749670337072,10.0,2815.5,2815.0,0.1776]
[1749670337073,10.0,2815.4,2815.0,0.1776]
[1749670337425,13.75687038,2815.4,2815.0,0.1776]
[1749670337879,10.15467038,2815.5,2815.0,0.1776]
[1749670338017,3.779,2815.5,2815.2,0.1776]
[1749670338216,3.779,2815.6,2815.2,0.1776]
[1749670339227,0.9303,2815.7,2815.2,0.1776]
[1749670339427,3.778,2815.6,2815.2,0.1776]
[1749670340035,9.97787038,2815.5,2815.2,0.1776]
[1749670340534,13.75587038,2815.5,2815.2,0.1776]
[1749670341763,9.97787038,2815.5,2815.2,0.1776]
[1749670341924,3.778,2815.5,2815.2,0.1776]
[1749670343385,13.75587038,2815.5,2815.2,0.1776]
[1749670344375,0.1768,2815.7,2815.2,0.1776]
[1749670344581,3.778,2815.6,2815.2,0.1776]
[1749670344780,9.97787038,2815.4,2814.1,1.50441953]
[1749670345079,3.778,2815.3,2814.1,0.35031937]
[1749670345290,3.778,2815.3,2814.4,3.55312856]
[1749670345592,3.778,2815.3,2814.5,0.35531286]
[1749670345747,3.778,2815.3,2814.6,3.55284689]
[1749670346283,19.97787038,2815.7,2814.5,0.35531286]
[1749670346447,3.778,2815.6,2814.4,10.0]
[1749670346646,9.97787038,2815.4,2814.4,13.55310337]
[1749670346843,9.97787038,2814.8,2814.3,1.031]
[1749670347984,9.97787038,2814.5,2814.3,1.031]
[1749670351187,9.97787038,2814.8,2814.3,1.031]
[1749670351393,13.75587038,2814.8,2814.3,1.031]
[1749670352357,3.778,2814.8,2814.3,1.031]
[1749670352571,3.778,2814.8,2813.5,4.67]
[1749670352572,9.97787038,2814.5,2813.2,10.0]
[1749670352772,0.8048,2814.7,2813.4,1.031]
[1749670352773,9.97787038,2814.0,2813.4,1.031]
[1749670353077,3.778,2813.9,2813.4,1.031]
[1749670354297,9.97787038,2813.6,2813.4,1.031]
[1749670354682,9.97787038,2813.6,2813.4,1.2086]
[1749670355204,3.778,2813.9,2813.4,1.031]
[1749670355408,0.1776,2814.1,2813.5,0.1776]
[1749670355571,0.814,2815.3,2813.8,0.55]
[1749670355772,0.814,2815.6,2814.1,0.55]
[1749670355993,9.97787038,2815.5,2814.4,3.55309028]
[1749670356406,9.97787038,2815.5,2814.4,3.5531552]
[1749670356605,9.97787038,2815.5,2814.3,13.55325189]
[1749670356808,0.814,2815.6,2814.6,10.0]
[1749670357109,9.97787038,2815.3,2814.4,1.83632519]
[1749670357275,9.97787038,2815.3,2814.5,1.032]
[1749670357475,9.97787038,2815.3,2814.3,3.55320272]
[1749670357699,9.97787038,2815.3,2814.4,1.38732027]
[1749670358295,9.97787038,2815.3,2814.4,4.94045136]
[1749670358496,3.778,2815.4,2814.4,1.38732027]
[1749670358698,3.778,2815.4,2814.5,3.55302155]
[1749670359301,0.814,2815.6,2814.5,0.35827866]
[1749670359500,0.814,2815.6,2814.4,1.38732027]
[1749670359699,0.814,2815.6,2814.5,1.13873203]
[1749670360314,4.592,2815.6,2814.5,1.13873203]
[1749670360522,9.97787038,2815.2,2814.6,1.032]
[1749670361141,0.8195,2815.1,2814.6,1.032]
[1749670361497,9.97787038,2814.9,2813.9,0.41040392]
[1749670361708,4.5975,2815.1,2813.9,1.031]
[1749670361709,9.97787038,2814.5,2813.9,1.031]
[1749670362944,9.97787038,2814.2,2813.3,1.031]
[1749670363231,9.97787038,2813.9,2813.3,1.031]
[1749670364301,0.7761,2813.8,2813.3,1.031]
[1749670365400,0.7761,2813.8,2813.4,0.1776]
[1749670367732,3.778,2814.0,2813.3,1.031]
[1749670367932,3.778,2814.0,2813.6,0.1776]
[1749670368614,9.97787038,2813.9,2813.6,0.1776]
[1749670368932,0.8081,2813.8,2813.3,1.031]
[1749670369133,9.97787038,2813.6,2813.4,0.1776]
[1749670369351,0.8081,2813.8,2813.4,0.1776]
[1749670371239,4.5871,2813.8,2813.4,0.1776]
[1749670371445,14.56497038,2813.8,2813.4,0.1776]
[1749670372523,4.5861,2813.8,2813.4,0.1776]
[1749670372724,0.1776,2813.9,2813.4,0.1776]
[1749670372929,3.778,2813.9,2813.6,0.1776]
[1749670373460,10.96257038,2814.1,2813.6,0.1776]
[1749670373762,3.778,2814.0,2813.6,0.1776]
[1749670375166,0.7693,2813.9,2812.6,4.67]
[1749670375381,2.126,2812.5,2810.8,0.18013845]
[1749670375581,0.7693,2812.6,2810.8,0.2969911]
[1749670375582,1.3193,2810.9,2810.8,0.2969911]
[1749670375730,4.6843,2810.9,2810.3,0.18529768]
[1749670376093,9.97787038,2810.5,2809.3,0.7657]
[1749670376556,9.97787038,2810.5,2810.3,0.1776]
[1749670377274,9.97787038,2810.6,2809.3,0.7657]
[1749670377460,9.97787038,2810.1,2809.3,0.7657]
[1749670378364,3.924,2810.3,2809.3,0.7657]
[1749670378533,0.1776,2810.5,2810.0,0.1776]
[1749670378930,3.921,2810.5,2810.3,0.1776]
[1749670379160,13.89887038,2810.5,2810.3,0.1776]
[1749670379464,0.1776,2810.4,2809.9,0.1776]
[1749670379784,9.97787038,2810.8,2809.3,0.7657]
[1749670379989,14.0986,2810.7,2810.2,0.1776]
[1749670380431,11.3302,2810.3,2808.7,0.7826]
[1749670380632,9.97787038,2809.2,2808.7,0.7826]
[1749670380861,4.1086,2809.5,2809.0,0.1776]
[1749670381061,3.931,2809.4,2809.0,0.1776]
[1749670381262,10.15547038,2809.8,2809.3,0.1776]
[1749670381526,3.93,2809.6,2809.3,0.1776]
[1749670382352,3.928,2809.6,2809.3,0.1776]
[1749670383355,9.97787038,2809.4,2809.3,0.1776]
[1749670383528,9.97787038,2809.4,2808.7,0.7826]
[1749670383733,9.97787038,2809.4,2809.0,0.1776]
[1749670384259,3.926,2809.3,2809.0,0.1776]
[1749670384969,3.922,2809.3,2809.0,0.1776]
[1749670386041,3.922,2809.3,2808.3,0.8252]
[1749670386241,0.7817,2809.1,2807.9,0.10611243]
[1749670386437,0.34937928,2809.2,2808.0,0.8252]
[1749670386782,1.05229452,2809.6,2808.1,10.8252]
[1749670386783,3.938,2809.6,2808.1,10.8252]
[1749670386952,3.938,2809.6,2808.3,10.0]
[1749670387480,3.938,2809.6,2808.4,0.8252]
[1749670388038,9.97787038,2808.5,2807.9,0.10756909]
[1749670388338,9.97787038,2808.5,2805.7,9.213]
[1749670388339,9.97787038,2808.7,2807.8,0.8252]
[1749670388763,3.965,2808.9,2807.8,0.8252]
[1749670388935,0.82191185,2808.8,2807.8,0.8252]
[1749670389137,0.7817,2809.0,2807.9,1.143]
[1749670389375,4.78891848,2808.9,2808.0,0.19682]
[1749670389639,0.82191848,2808.8,2808.0,1.33982]
[1749670389881,0.82191848,2808.7,2808.0,1.33982]
[1749670390074,0.7817,2809.0,2808.0,1.33982]
[1749670390391,0.82175025,2808.9,2808.1,1.143]
[1749670390594,1.05229452,2809.2,2808.1,1.143]
[1749670390772,0.82197183,2809.1,2808.1,1.143]
[1749670390981,0.82197183,2809.0,2808.1,1.143]
[1749670391269,0.82197183,2808.9,2808.1,1.143]
[1749670391485,0.82197183,2808.8,2808.1,1.143]
[1749670391814,0.82197183,2808.7,2808.1,1.143]
[1749670392010,1.05229452,2809.1,2808.1,1.143]
[1749670392321,1.87485795,2809.0,2808.1,1.143]
[1749670392609,1.05229452,2808.8,2807.9,1.143]
[1749670392793,1.87485795,2808.7,2807.9,1.33982]
[1749670392999,0.82256343,2808.6,2807.9,1.33982]
[1749670393311,0.82256343,2808.5,2807.9,1.33982]
[1749670393513,0.82256343,2808.4,2807.9,1.33982]
[1749670393814,1.05229452,2808.7,2808.0,0.216502]
[1749670394112,0.82265891,2808.6,2808.0,0.216502]
[1749670394320,0.82265891,2808.5,2808.0,0.216502]
[1749670394464,1.05229452,2808.2,2807.7,0.7604]
[1749670394664,0.82265891,2808.1,2807.7,0.7604]
[1749670394913,1.05229452,2808.5,2807.7,0.7604]
[1749670395077,0.82255121,2808.4,2808.1,0.1776]
[1749670395282,2.22713382,2808.3,2808.1,0.1776]
[1749670395481,0.82255121,2808.2,2808.1,0.1776]
[1749670396783,1.85113979,2808.2,2808.1,0.1776]
[1749670397015,0.82255121,2808.2,2808.1,0.1776]
[1749670397168,0.82255121,2808.2,2807.7,1.9034]
[1749670397169,2.22713382,2808.2,2807.7,0.7604]
[1749670397499,1.85125399,2808.1,2807.7,0.7604]
[1749670397799,0.82255121,2808.0,2807.6,0.10662961]
[1749670398001,0.82255121,2807.9,2807.3,0.7604]
[1749670398189,1.02870278,2808.1,2807.3,0.7604]
[1749670398190,0.82255121,2807.8,2807.3,0.7604]
[1749670398388,0.82255121,2807.7,2807.3,0.7604]
[1749670398702,1.40458261,2808.2,2808.0,0.1776]
[1749670398902,2.22858778,2808.1,2807.6,0.1776]
[1749670399128,2.22858778,2808.1,2807.0,0.7513]
[1749670399129,1.02997905,2807.7,2807.0,0.7513]
[1749670399273,1.02997905,2807.7,2804.3,0.31984465]
[1749670399274,1.40458261,2807.2,2806.7,0.7513]
[1749670399477,1.03044042,2806.9,2806.7,0.7513]
[1749670399672,0.82400517,2806.8,2806.7,0.7513]
[1749670399924,1.40458261,2807.5,2806.7,1.10665287]
[1749670400125,1.40458261,2807.6,2806.7,1.10665287]
[1749670400424,2.86157392,2807.8,2806.7,0.7513]
[1749670400425,1.40458261,2807.3,2806.7,0.7513]
[1749670400578,1.40458261,2807.3,2806.8,0.18943]
[1749670400784,1.40458261,2807.3,2806.7,0.7513]
[1749670401006,1.40458261,2807.1,2806.7,0.7513]
[1749670401524,1.40458261,2807.0,2806.7,0.7513]
[1749670402029,1.40458261,2806.9,2806.4,0.7653]
[1749670402405,1.40458261,2806.7,2806.3,0.005]
[1749670402594,1.40458261,2806.6,2806.3,0.005]
[1749670403404,1.40458261,2806.4,2806.3,0.005]
[1749670403606,1.40458261,2806.4,2806.3,0.35526623]
[1749670403823,1.40458261,2806.4,2806.3,0.005]
[1749670404008,2.10687392,2806.4,2806.3,0.005]
[1749670404207,2.80916522,2806.5,2805.8,1.144]
[1749670404410,2.06941185,2805.9,2805.8,1.33493]
[1749670404583,2.07403973,2805.9,2805.8,1.33493]
[1749670404999,2.07403973,2806.0,2805.8,0.19093]
[1749670405290,2.80916522,2806.0,2805.6,0.36232475]
[1749670405801,2.08007211,2805.7,2805.4,0.821]
[1749670406010,1.38671526,2805.6,2805.4,0.821]
[1749670407023,1.27083681,2806.2,2805.6,10.7883]
[1749670407204,2.80916522,2807.1,2805.9,10.0]
[1749670407402,2.80916522,2807.3,2806.1,0.7883]
[1749670407605,2.80916522,2807.4,2806.2,1.9323]
[1749670407916,9.97787038,2807.3,2806.3,0.19323]
[1749670408119,12.7870356,2807.3,2806.3,1.144]
[1749670408524,2.80916522,2807.2,2806.3,1.144]
[1749670409110,0.1776,2807.1,2806.6,0.1776]
[1749670409287,2.98676522,2807.1,2806.6,0.1776]
[1749670409484,9.97787038,2807.0,2806.6,0.1776]
[1749670409689,9.97787038,2806.7,2805.8,1.9444]
[1749670409915,0.1776,2806.8,2806.3,0.1776]
[1749670411228,0.8166,2806.9,2805.9,0.4021017]
[1749670411524,3.62576522,2806.9,2806.5,0.1776]
[1749670411722,0.8166,2806.9,2806.5,0.1776]
[1749670411925,0.83239065,2806.8,2806.5,0.1776]
[1749670412128,0.83239065,2806.7,2806.5,0.1776]
[1749670412293,0.83239065,2806.6,2806.5,0.1776]
[1749670415488,0.83239065,2806.6,2805.8,0.8004]
[1749670415694,0.83239065,2806.5,2806.3,0.1776]
[1749670416035,2.98676522,2806.8,2806.3,0.1776]
[1749670416036,0.83239065,2806.4,2806.3,0.1776]
[1749670416224,0.83239065,2806.4,2806.3,0.16599]
[1749670416904,0.83239065,2806.4,2806.3,0.98139]
[1749670418436,0.83239065,2806.4,2806.3,0.16599]
[1749670422042,0.83239065,2806.4,2806.3,1.31799]
[1749670422702,0.83239065,2806.4,2806.3,0.16599]
[1749670424545,10.81026103,2806.4,2805.6,0.758]
[1749670424744,0.83239065,2806.3,2805.9,0.1776]
[1749670424905,0.83239065,2806.2,2805.9,0.1776]
[1749670425105,0.83239065,2806.1,2805.9,0.1776]
[1749670425301,0.83239065,2806.0,2805.9,0.1776]
[1749670427352,2.08973842,2806.7,2805.9,2.1569]
[1749670427550,2.08973842,2806.7,2806.0,0.21569]
[1749670427926,2.08973842,2806.8,2806.5,0.1776]
[1749670428254,2.08973842,2807.1,2806.8,0.1776]
[1749670428409,2.08973842,2807.0,2806.8,0.1776]
[1749670428606,2.08973842,2807.1,2806.8,0.1776]
[1749670428808,2.08973842,2807.0,2806.8,0.1776]
[1749670429117,2.0947121,2806.9,2806.6,0.1776]
[1749670429336,2.0947121,2807.0,2806.6,0.1776]
[1749670430461,12.25018248,2807.1,2806.6,0.1776]
[1749670430821,10.15547038,2807.1,2806.6,0.1776]
[1749670431055,0.1776,2807.1,2806.6,0.1776]
[1749670431254,0.7859,2807.3,2806.5,0.766]
[1749670431255,0.7859,2807.3,2806.9,0.1776]
[1749670431829,0.1776,2807.4,2806.9,0.1776]
[1749670432039,0.7649,2807.6,2807.2,0.1776]
[1749670432040,2.8596121,2807.6,2807.2,0.1776]
[1749670432319,0.7649,2807.6,2807.2,0.1776]
[1749670432724,0.7649,2807.6,2806.3,3.56336745]
[1749670432725,9.97787038,2807.4,2806.3,1.9102]
[1749670432954,0.1776,2807.2,2806.7,0.1776]
[1749670433780,9.97787038,2807.4,2806.4,3.91960663]
[1749670433945,10.15547038,2807.4,2806.9,0.1776]
[1749670435102,4.7189,2807.6,2806.7,3.56283168]
[1749670435263,0.7649,2807.6,2807.2,0.1776]
[1749670438669,9.97787038,2807.4,2807.2,0.1776]
[1749670439422,9.97787038,2807.4,2806.6,1.9469]
[1749670439423,9.97787038,2807.4,2806.6,0.7949]
[1749670439717,9.97787038,2807.4,2806.4,1.50833675]
[1749670439718,9.97787038,2807.1,2806.9,0.1776]
[1749670440269,10.15547038,2807.4,2806.9,0.1776]
[1749670440524,9.97787038,2807.4,2807.0,0.1776]
[1749670440821,9.97787038,2807.1,2806.4,1.50833675]
[1749670440986,10.15547038,2807.1,2806.6,0.1776]
[1749670441437,0.8142,2807.0,2806.6,0.1776]
[1749670441567,0.8142,2807.0,2805.6,3.56427895]
[1749670441568,0.8142,2806.7,2805.6,0.7949]
[1749670441767,9.97787038,2806.2,2805.6,0.7949]
[1749670442470,9.97787038,2806.5,2805.6,0.7949]
[1749670442670,0.8142,2806.7,2805.7,0.43592406]
[1749670442870,0.8142,2806.7,2805.6,4.35916477]
[1749670443124,0.8142,2806.7,2805.7,3.56411274]
[1749670443300,0.8142,2806.7,2805.6,4.35914857]
[1749670443516,9.97787038,2806.2,2805.3,2.26062639]
[1749670443823,9.97787038,2806.2,2805.3,6.40784371]
[1749670443969,9.97787038,2806.2,2805.3,2.8431802]
[1749670444165,9.97787038,2806.2,2805.3,1.152]
[1749670444166,9.97787038,2805.6,2805.3,1.152]
[1749670444370,9.97787038,2805.6,2803.9,0.769]
[1749670444371,0.7519,2805.4,2803.9,0.769]
[1749670444822,4.6879,2805.4,2804.1,0.7973]
[1749670444975,0.7519,2805.4,2804.5,0.7973]
[1749670445508,3.941,2805.8,2804.7,3.56536561]
[1749670445709,0.7615,2805.9,2804.8,0.71309365]
[1749670446007,4.7285,2806.4,2805.1,0.8139]
[1749670446193,4.7285,2806.4,2805.3,3.56466831]
[1749670446394,0.7885,2806.4,2805.3,3.56462865]
[1749670446571,4.7285,2806.4,2805.4,0.71294369]
[1749670446773,0.7885,2806.4,2805.4,0.8139]
[1749670446971,0.7885,2806.4,2805.4,4.37840241]
[1749670447167,0.7885,2806.4,2805.5,3.56441524]
[1749670447397,1.08435486,2806.4,2805.6,0.43783152]
[1749670447596,1.08435486,2806.4,2805.4,0.8139]
[1749670447875,0.29585486,2806.3,2805.4,0.8139]
[1749670448309,0.29585486,2806.3,2805.5,3.56433275]
[1749670448609,0.29585486,2806.3,2805.4,0.8139]
[1749670448825,0.29585486,2806.3,2806.1,0.7771]
[1749670448978,9.97787038,2806.8,2806.1,1.2111871]
[1749670449305,9.97787038,2806.8,2806.1,1.8991]
[1749670449607,9.97787038,2806.2,2805.3,0.8077]
[1749670449912,9.97787038,2806.2,2805.3,1.9297]
[1749670450114,9.97787038,2806.2,2805.4,0.19297]
[1749670450427,9.97787038,2806.2,2804.3,9.227]
[1749670450428,0.7623,2805.8,2805.1,1.122]
[1749670451610,0.7623,2805.8,2805.7,0.1776]
[1749670451831,0.7942,2806.1,2805.7,0.1776]
[1749670452028,9.97787038,2805.9,2805.7,0.1776]
[1749670452328,0.7942,2805.8,2804.8,4.68725408]
[1749670452523,0.7942,2805.8,2804.9,0.54612541]
[1749670452896,0.7942,2805.8,2804.8,4.68726601]
[1749670453291,12.7973513,2805.3,2804.7,0.774]
[1749670453504,12.7973513,2805.0,2804.4,0.774]
[1749670454344,4.7242,2805.8,2804.4,0.774]
[1749670454345,13.5915513,2805.8,2804.4,0.774]
[1749670454636,0.7942,2805.8,2804.7,0.768]
[1749670454841,0.7646,2806.1,2805.0,3.56503328]
[1749670454994,0.7646,2805.2,2804.5,1.1123]
[1749670455196,0.7646,2805.2,2804.3,3.56595228]
[1749670455394,0.7646,2805.2,2804.2,0.768]
[1749670455609,0.7646,2805.2,2804.2,10.768]
[1749670455809,0.7646,2805.2,2804.3,6.15651037]
[1749670456531,0.7646,2805.2,2804.4,1.122]
[1749670457120,0.7646,2805.6,2804.4,0.768]
[1749670457321,0.7646,2805.6,2804.5,8.6416921]
[1749670457643,0.7646,2805.6,2804.8,3.56530804]
[1749670457976,0.7646,2805.6,2804.7,3.56544347]
[1749670458102,0.7646,2805.6,2804.7,3.56537275]
[1749670458301,0.7646,2805.6,2804.6,4.50643844]
[1749670458502,0.7646,2805.6,2804.6,0.94096921]
[1749670458737,10.0,2806.4,2804.1,0.35237616]
[1749670458738,14.83125014,2805.5,2804.7,0.60169692]
[1749670458903,14.82725014,2805.5,2804.3,5.46733349]
[1749670459438,14.82725014,2805.5,2804.3,1.9014]
[1749670459801,14.82725014,2805.5,2804.3,5.46734736]
[1749670460004,14.82725014,2805.5,2804.4,3.5658201]
[1749670460345,10.87125014,2805.5,2804.5,3.56568346]
[1749670460563,10.87125014,2805.5,2804.6,0.35656835]
[1749670461043,10.87125014,2805.5,2804.3,1.9014]
[1749670461447,10.87125014,2805.5,2804.4,3.56575685]
[1749670461608,4.7701,2805.5,2804.3,1.9014]
[1749670461946,4.7701,2805.5,2804.6,3.5654471]
[1749670462149,0.8151,2805.5,2805.3,0.1776]
[1749670462326,0.8297,2805.9,2805.3,0.1776]
[1749670462655,4.7827,2805.9,2805.3,0.1776]
[1749670462826,4.7827,2805.9,2805.5,0.1776]
[1749670463670,10.05615014,2805.8,2805.5,0.1776]
[1749670464159,10.05615014,2805.8,2804.1,1.14417616]
[1749670464160,0.8297,2805.7,2804.1,1.14417616]
[1749670464367,10.05615014,2805.3,2804.3,3.56593346]
[1749670464524,10.05615014,2805.6,2804.3,3.56593803]
[1749670464725,3.951,2805.5,2804.2,0.27761762]
[1749670464922,3.951,2805.5,2804.7,3.56543203]
[1749670465126,14.00615014,2805.6,2804.8,0.4356232]
[1749670465528,14.00615014,2805.6,2804.6,0.7908]
[1749670466464,10.05615014,2805.6,2804.6,0.7908]
[1749670466690,14.00415014,2805.6,2804.6,4.35630601]
[1749670466983,10.05615014,2805.6,2804.6,4.35630601]
[1749670467128,14.00215014,2805.6,2804.6,0.7908]
[1749670467824,0.8297,2805.7,2804.6,0.7908]
[1749670468067,0.8297,2805.7,2804.7,3.56535275]
[1749670468226,0.8297,2805.7,2804.9,3.5650929]
[1749670468427,0.8297,2805.7,2805.1,3.56493529]
[1749670468631,0.8297,2805.7,2805.0,1.122]
[1749670468881,0.7806,2806.0,2805.1,0.7908]
[1749670469177,0.7806,2806.3,2805.3,3.5646711]
[1749670469382,0.7806,2806.3,2805.4,0.35646711]
[1749670469831,0.7806,2806.3,2805.5,4.68639873]
[1749670470170,0.7806,2806.3,2805.5,1.122]
[1749670470365,0.7806,2806.3,2805.5,4.68634436]
[1749670470529,0.7806,2806.3,2805.5,1.122]
[1749670470734,0.7896,2806.6,2805.9,3.56384777]
[1749670470957,0.7896,2806.6,2805.6,5.497]
[1749670470958,0.7896,2807.2,2806.0,3.92009017]
[1749670471171,10.05615014,2806.7,2806.0,0.35638478]
[1749670471329,10.05615014,2806.4,2806.0,1.122]
[1749670472132,10.05615014,2806.1,2806.0,1.122]
[1749670472335,10.05615014,2806.4,2806.0,1.122]
[1749670472551,13.99415014,2806.4,2806.0,1.122]
[1749670473376,10.05615014,2806.4,2806.0,1.122]
[1749670473943,0.785,2806.8,2806.0,4.6857425]
[1749670474288,0.785,2806.8,2806.6,0.1776]
[1749670476279,10.23375014,2807.3,2806.6,0.1776]
[1749670476586,4.6981,2807.1,2806.6,0.1776]
[1749670476737,4.6981,2807.1,2806.0,1.122]
[1749670477087,4.6981,2807.1,2805.9,10.7818]
[1749670477088,10.05615014,2807.0,2806.1,1.122]
[1749670477239,12.78734837,2806.7,2806.6,0.1776]
[1749670480216,4.8757,2807.1,2806.6,0.1776]
[1749670480363,12.78734837,2806.8,2806.6,0.1776]
[1749670480574,12.78734837,2806.8,2805.6,1.112]
[1749670480575,4.7096,2806.7,2805.6,1.112]
[1749670480775,12.78734837,2806.3,2806.2,0.1776]
[1749670481011,17.49994837,2806.3,2805.6,1.112]
[1749670481191,12.78734837,2805.9,2805.7,0.1776]
[1749670481876,0.8274,2805.8,2805.6,1.112]
[1749670482077,3.919,2805.7,2804.8,1.54761527]
[1749670482311,16.70634837,2805.7,2805.3,0.1776]
[1749670483617,3.92,2805.7,2805.5,0.1776]
[1749670483825,0.8274,2805.8,2805.5,0.1776]
[1749670483987,13.61474837,2805.8,2805.5,0.1776]
[1749670487186,13.61474837,2805.8,2805.5,0.1276]
[1749670488791,0.7717,2805.6,2805.5,0.1276]
[1749670489129,0.1776,2805.5,2804.4,1.8936]
[1749670489281,0.7717,2805.6,2804.8,0.1776]
[1749670489485,3.907,2805.5,2804.5,3.75498345]
[1749670489724,3.907,2805.5,2805.1,0.1776]
[1749670490225,16.69434837,2805.4,2805.1,0.1776]
[1749670491628,0.8268,2805.9,2805.0,0.8248]
[1749670491792,0.8268,2805.9,2805.3,0.1776]
[1749670491989,0.8268,2805.9,2805.7,0.1776]
[1749670492724,3.902,2806.1,2805.7,0.1776]
[1749670493594,12.78734837,2806.0,2805.7,0.1776]
[1749670494410,16.86694837,2806.0,2805.5,0.1776]
[1749670494594,12.78734837,2805.7,2805.5,0.1776]
[1749670495293,0.7603,2805.6,2805.5,0.1776]
[1749670497397,4.6573,2805.6,2805.5,0.1776]
[1749670498255,0.7603,2805.9,2805.5,0.1776]
[1749670498430,3.892,2805.8,2805.5,0.1776]
[1749670499751,12.78734837,2805.6,2805.5,0.1776]
[1749670500355,3.892,2805.8,2805.5,0.1776]
[1749670501644,0.1776,2805.5,2804.9,0.1776]
[1749670501951,12.78734837,2805.1,2804.9,0.1776]
[1749670502328,12.78734837,2805.1,2804.3,1.112]
[1749670502329,0.7918,2805.0,2804.3,1.112]
[1749670502662,3.886,2804.9,2804.7,0.1776]
[1749670503059,0.7918,2805.4,2804.6,0.7845]
[1749670503262,1.39668132,2806.6,2805.2,0.1776]
[1749670503263,0.1776,2805.7,2805.2,0.1776]
[1749670503480,0.1776,2806.0,2805.7,0.1776]
[1749670503692,4.6788,2806.1,2805.3,1.15874756]
[1749670503693,16.67434837,2806.6,2805.6,0.1776]
[1749670503981,12.78734837,2806.3,2805.9,0.1776]
[1749670504130,12.78734837,2806.3,2805.3,4.72333697]
[1749670504131,12.78734837,2806.0,2804.9,0.8278]
[1749670504328,12.78734837,2805.7,2804.9,0.8278]
[1749670504572,0.8313,2806.2,2805.0,0.4393037]
[1749670504573,16.67934837,2806.0,2805.0,0.4393037]
[1749670504783,16.67934837,2806.0,2804.9,0.8278]
[1749670504784,3.892,2806.0,2804.9,0.8278]
[1749670504926,3.892,2806.0,2805.1,0.8278]
[1749670505825,16.67934837,2806.0,2805.1,0.8278]
[1749670506150,12.78734837,2805.7,2805.1,0.8278]
[1749670506462,16.67934837,2806.0,2805.1,1.9398]
[1749670506636,16.67934837,2806.0,2805.1,2.13378]
[1749670507072,4.7203,2806.2,2805.1,5.69868085]
[1749670507431,0.8313,2806.2,2805.2,3.56478817]
[1749670507628,0.8222,2806.5,2805.3,0.7672]
[1749670509134,0.18495373,2806.7,2805.7,1.112]
[1749670510364,0.8311,2807.1,2806.0,3.56372367]
[1749670510530,0.8311,2807.1,2805.9,4.33547069]
[1749670510750,0.8311,2807.1,2806.0,0.43354707]
[1749670510947,0.812,2807.4,2806.2,3.56346489]
[1749670511200,0.812,2807.4,2806.3,0.8243]
[1749670511363,12.78734837,2807.1,2806.3,0.8243]
[1749670511568,12.78734837,2807.1,2806.4,1.092]
[1749670511924,0.812,2807.4,2806.4,1.092]
[1749670511925,17.48734837,2807.4,2806.4,1.092]
[1749670512194,0.812,2807.4,2806.5,0.19163]
[1749670512548,13.59934837,2807.7,2806.6,0.8243]
[1749670512773,17.48634837,2807.7,2806.6,0.8243]
[1749670513199,13.59934837,2807.7,2806.6,0.8243]
[1749670513394,0.812,2807.7,2806.6,0.8243]
[1749670513609,0.7737,2808.6,2807.1,4.31568132]
[1749670513753,12.78734837,2808.4,2807.3,0.7534]
[1749670513950,12.78734837,2807.8,2807.3,0.7534]
[1749670514149,12.78734837,2807.8,2807.4,0.1776]
[1749670515154,0.1776,2808.0,2807.4,0.1776]
[1749670515382,10.0,2808.4,2807.4,0.1776]
[1749670515555,17.43404837,2808.5,2807.4,0.1776]
[1749670515556,12.78734837,2808.1,2807.4,0.1776]
[1749670515756,12.78734837,2808.1,2807.4,1.2696]
[1749670515995,12.78734837,2808.1,2807.4,1.4719]
[1749670516291,12.78734837,2808.1,2807.4,1.2943]
[1749670516492,12.78734837,2808.1,2807.4,0.2023]
[1749670516700,12.78734837,2808.1,2807.3,0.7534]
[1749670517900,0.7627,2808.5,2807.3,0.7534]
[1749670518102,3.882,2808.5,2807.4,0.8092]
[1749670518785,12.78734837,2808.7,2807.2,1.092]
[1749670518786,12.78734837,2808.7,2807.5,0.8092]
[1749670518961,16.66834837,2808.7,2807.5,0.8092]
[1749670519165,0.8326,2808.8,2807.7,0.7777]
[1749670519376,12.78734837,2808.9,2807.9,0.7777]
[1749670519589,12.78734837,2808.6,2807.9,0.7777]
[1749670520505,12.78734837,2808.0,2807.5,0.7777]
[1749670521168,3.879,2808.3,2807.5,0.7777]
[1749670521372,3.879,2808.3,2807.5,0.96467]
[1749670521591,0.769,2808.5,2807.5,0.96467]
[1749670521791,3.878,2808.6,2807.5,4.52646379]
[1749670521976,3.878,2808.6,2807.6,0.45264638]
[1749670522510,12.78734837,2808.5,2807.5,0.96467]
[1749670522810,12.78734837,2808.5,2807.6,1.092]
[1749670523504,12.78734837,2808.5,2807.5,0.7777]
[1749670523803,12.78734837,2808.5,2807.5,1.8697]
[1749670524215,12.78734837,2808.5,2807.5,0.7777]